fUSD/lending_fUSD_20240129
["ID","MTS","AMOUNT","RATE_DAILY","PERIOD"]
[312976125,1706560280795,-4583.74,0.00053698,31]
[312976126,1706560280805,-1755.03,0.00053698,7]
[312976127,1706560280814,-1002.26,0.00053698,31]
[312976128,1706560280824,-267.78486125,0.00053698,20]
[312976129,1706560280835,-503.19,0.00053698,31]
[312976130,1706560280846,-10182.67,0.00053698,31]
[312976131,1706560280856,-4249.45,0.00053698,31]
[312976132,1706560280866,-500.0,0.00053698,31]
[312976133,1706560280875,-1038.15,0.00053698,31]
[312976134,1706560280884,-1871.53,0.00053698,31]
[312976135,1706560280894,-1548.31,0.00053698,31]
[312976136,1706560280903,-1007.6,0.00053698,31]
[312976137,1706560280913,-500.0,0.00053698,31]
[312976138,1706560280922,-500.0,0.00053698,31]
[312976139,1706560280932,-4198.38,0.00053698,31]
[312976140,1706560280943,-4148.68,0.00053698,5]
[312976141,1706560280952,-500.0,0.00053698,31]
[312976142,1706560280961,-569.88,0.00053698,31]
[312976143,1706560280971,-1746.98,0.00053698,31]
[312976144,1706560280980,-946.79,0.00053698,31]
[312976145,1706560280991,-659.85,0.00053698,31]
[312976146,1706560281000,-500.0,0.00053698,31]
[312976147,1706560281010,-1063.77,0.00053698,31]
[312976148,1706560281019,-7962.11,0.00053698,31]
[312976149,1706560281028,-3153.28,0.00053698,31]
[312976150,1706560281038,-500.0,0.00053698,31]
[312976151,1706560281048,-500.0,0.00053698,31]
[312976152,1706560281058,-301.21448782,0.00053698,31]
[312976153,1706560281068,-4332.43,0.00053698,31]
[312976154,1706560281078,-1133.9,0.00053698,31]
[312976155,1706560281088,-1617.28,0.00053698,31]
[312976156,1706560281098,-5863.89,0.00053698,31]
[312976157,1706560281108,-500.0,0.00053698,31]
[312976158,1706560281117,-1197.97,0.00053698,31]
[312976159,1706560281127,-1997.59,0.00053698,31]
[312976160,1706560281136,-500.0,0.00053698,7]
[312976161,1706560281146,-1149.94,0.00053698,31]
[312976162,1706560281156,-681.59,0.00053698,31]
[312976163,1706560281165,-500.0,0.00053698,31]
[312976164,1706560281175,-500.0,0.00053698,31]
[312976165,1706560281185,-500.0,0.00053698,31]
[312976166,1706560281195,-1457.36,0.00053698,31]
[312976167,1706560281204,-508.06,0.00053698,31]
[312976168,1706560281214,-500.0,0.00053698,31]
[312976169,1706560281226,-1023.2,0.00053698,31]
[312976170,1706560281236,-1286.28,0.00053698,31]
[312976171,1706560281246,-500.0,0.00053698,7]
[312976172,1706560281254,-642.3,0.00053698,31]
[312976173,1706560281264,-507.82,0.00053698,31]
[312976174,1706560281273,-1436.82,0.00053698,31]
[312976175,1706560281282,-2904.01,0.00053698,5]
[312976176,1706560281291,-500.0,0.00053698,31]
[312976177,1706560281301,-1073.77,0.00053698,31]
[312976178,1706560281310,-500.0,0.00053698,31]
[312976179,1706560281320,-500.0,0.00053698,31]
[312976180,1706560281329,-902.23,0.00053698,31]
[312976181,1706560281339,-500.0,0.00053698,31]
[312976182,1706560281349,-1043.52,0.00053698,31]
[312976183,1706560281358,-2075.54,0.00053698,31]
[312976184,1706560281368,-1153.25,0.00053698,31]
[312976185,1706560281377,-500.0,0.00053698,31]
[312976186,1706560281386,-1170.76,0.00053698,31]
[312976187,1706560281396,-992.98,0.00053698,31]
[312976188,1706560281405,-1219.32,0.00053698,31]
[312976189,1706560281415,-2355.86,0.00053698,31]
[312976190,1706560281424,-1137.14,0.00053698,31]
[312976191,1706560281433,-1856.63,0.00053698,31]
[312976192,1706560281443,-525.44,0.00053698,31]
[312976193,1706560281452,-1046.32,0.00053698,31]
[312976194,1706560281461,-2810.09,0.00053698,31]
[312976195,1706560281471,-4393.08,0.00053698,31]
[312976196,1706560281483,-777.18,0.00053698,31]
[312976197,1706560281492,-500.0,0.00053698,31]
[312976198,1706560281501,-500.0,0.00053698,31]
[312976199,1706560281510,-543.5,0.00053698,31]
[312976200,1706560281519,-500.0,0.00053698,31]
[312976201,1706560281528,-654.21,0.00053698,31]
[312976202,1706560281537,-1384.66,0.00053698,31]
[312976203,1706560281547,-2160.75,0.00053698,31]
[312976204,1706560281557,-2285.93,0.00053698,7]
[312976205,1706560281567,-745.11,0.00053698,31]
[312976206,1706560281577,-1522.49,0.00053698,31]
[312976207,1706560281586,-1223.13,0.00053698,31]
[312976208,1706560281595,-2278.99,0.00053698,31]
[312976209,1706560281605,-2428.38,0.00053698,31]
[312976210,1706560281614,-2579.65,0.00053698,31]
[312976211,1706560281623,-500.0,0.00053698,31]
[312976212,1706560281633,-1020.99,0.00053698,31]
[312976213,1706560281642,-500.0,0.00053698,31]
[312976214,1706560281652,-636.57,0.00053698,31]
[312976215,1706560281662,-500.0,0.00053698,14]
[312976216,1706560281672,-521.29,0.00053698,31]
[312976217,1706560281681,-818.65,0.00053698,31]
[312976218,1706560281691,-1372.59,0.00053698,31]
[312976219,1706560281701,-500.0,0.00053698,31]
[312976220,1706560281711,-500.0,0.00053698,31]
[312976221,1706560281719,-500.0,0.00053698,31]
[312976222,1706560281731,-1474.92,0.00053698,31]
[312976223,1706560281742,-529.19,0.00053698,31]
[312976224,1706560281752,-500.0,0.00053698,31]
[312976225,1706560281763,-500.0,0.00053698,31]
[312976226,1706560281772,-4936.79,0.00053698,31]
[312976227,1706560281782,-820.98,0.00053698,31]
[312976228,1706560281791,-1797.82,0.00053698,31]
[312976229,1706560281800,-1033.55,0.00053698,31]
[312976230,1706560281809,-527.47,0.00053698,31]
[312976231,1706560281818,-1398.26,0.00053698,31]
[312976232,1706560281827,-1095.17,0.00053698,31]
[312976233,1706560281837,-1726.01,0.00053698,31]
[312976234,1706560281847,-1943.7,0.00053698,31]
[312976235,1706560281953,-500.0,0.00053698,31]
[312976236,1706560281970,-500.0,0.00053698,31]
[312976237,1706560281980,-500.0,0.00053698,31]
[312976238,1706560281989,-500.0,0.00053698,31]
[312976239,1706560281998,-558.58,0.00053698,31]
[312976240,1706560282007,-500.0,0.00053698,31]
[312976241,1706560282017,-1144.47,0.00053698,31]
[312976242,1706560282026,-7410.07,0.00053698,31]
[312976243,1706560282036,-500.0,0.00053698,31]
[312976244,1706560282045,-500.0,0.00053698,31]
[312976245,1706560282055,-1617.52,0.00053698,31]
[312976246,1706560282064,-2653.45,0.00053698,31]
[312976247,1706560282073,-500.0,0.00053698,31]
[312976248,1706560282083,-500.0,0.00053698,31]
[312976249,1706560282093,-500.0,0.00053698,31]
[312976250,1706560282102,-10106.11,0.00053698,31]
[312976251,1706560282111,-500.0,0.00053698,31]
[312976252,1706560282120,-500.0,0.00053698,31]
[312976253,1706560282130,-500.0,0.00053698,31]
[312976254,1706560282139,-1502.27,0.00053698,31]
[312976255,1706560282149,-1138.89,0.00053698,31]
[312976256,1706560282158,-642.23,0.00053698,31]
[312976257,1706560282167,-2268.94,0.00053698,31]
[312976258,1706560282177,-724.26,0.00053698,31]
[312976259,1706560282187,-564.2,0.00053698,2]
[312976260,1706560282196,-500.0,0.00053698,31]
[312976261,1706560282206,-2909.62,0.00053698,31]
[312976262,1706560282216,-1338.16,0.00053698,31]
[312976263,1706560282226,-536.92,0.00053698,31]
[312976264,1706560282235,-764.64,0.00053698,2]
[312976265,1706560282244,-846.95,0.00053698,31]
[312976266,1706560282253,-830.73,0.00053698,31]
[312976267,1706560282262,-546.02,0.00053698,31]
[312976268,1706560282271,-1019.65,0.00053698,31]
[312976269,1706560282280,-1849.52,0.00053698,31]
[312976270,1706560282290,-500.0,0.00053698,31]
[312976271,1706560282299,-560.49,0.00053698,31]
[312976272,1706560282309,-500.0,0.00053698,31]
[312976273,1706560282318,-1462.48,0.00053698,31]
[312976274,1706560282327,-168.67693836,0.00053699,60]
[312976275,1706560282337,-154.0054391,0.00053699,60]
[312976276,1706560282346,-256.11692104,0.000537,10]
[312976277,1706560282355,-2286.0,0.000537,117]
[312976278,1706560282364,-157.47372314,0.00053712,60]
[312976279,1706560282373,-152.47772874,0.00053728,60]
[312976280,1706560282383,-154.67281811,0.00053744,60]
[312976281,1706560282392,-154.67281811,0.00053747,60]
[312976282,1706560282401,-150.52477513,0.00053747,60]
[312976283,1706560282410,-153.29755698,0.00053754,60]
[312976284,1706560282419,-166.53972704,0.00053789,60]
[312976285,1706560282428,-151.0129,0.00053798,59]
[312976286,1706560282438,-1000.0,0.000538,30]
[312976287,1706560282447,-1000.0,0.000538,30]
[312976288,1706560282456,-1000.0,0.000538,30]
[312976289,1706560282466,-1000.0,0.000538,30]
[312976290,1706560282476,-1000.0,0.000538,30]
[312976291,1706560282485,-1000.0,0.000538,30]
[312976292,1706560282494,-1000.0,0.000538,30]
[312976293,1706560282504,-1000.0,0.000538,30]
[312976294,1706560282513,-1000.0,0.000538,30]
[312976295,1706560282522,-1000.0,0.000538,30]
[312976296,1706560282532,-1000.0,0.000538,30]
[312976297,1706560282541,-1000.0,0.000538,30]
[312976298,1706560282550,-1000.0,0.000538,30]
[312976299,1706560282559,-1000.0,0.000538,30]
[312976300,1706560282569,-1000.0,0.000538,30]
[312976301,1706560282578,-1000.0,0.000538,30]
[312976302,1706560282587,-1000.0,0.000538,30]
[312976303,1706560282596,-1000.0,0.000538,30]
[312976304,1706560282606,-1000.0,0.000538,30]
[312976305,1706560282615,-995.48,0.000538,30]
[312976306,1706560282624,-21744.47342451,0.000538,60]
[312976307,1706560282634,-976.0,0.000538,120]
[312976308,1706560282643,-1000.0,0.000538,30]
[312976309,1706560282652,-1000.0,0.000538,30]
[312976310,1706560282662,-1000.0,0.000538,30]
[312976311,1706560282671,-1000.0,0.000538,30]
[312976312,1706560282680,-1000.0,0.000538,30]
[312976313,1706560282689,-1000.0,0.000538,30]
[312976314,1706560282699,-900.0,0.000538,30]
[312976315,1706560282709,-933.76,0.000538,30]
[312976316,1706560282718,-2005.68,0.000538,2]
[312976317,1706560282730,-153.29755698,0.000538,60]
[312976318,1706560282740,-500.0,0.00053825,120]
[312976319,1706560282758,-154.67281811,0.00053833,60]
[312976320,1706560282778,-169.03608846,0.00053837,60]
[312976321,1706560282795,-153.29755698,0.00053839,60]
[312976322,1706560282814,-154.67281811,0.00053854,60]
[312976323,1706560282830,-153.29755698,0.00053866,60]
[312976324,1706560282850,-5817.14754504,0.00053887,120]
[312976325,1706560282869,-3969.26969049,0.00053887,120]
[312976326,1706560282887,-3569.35789046,0.00053889,120]
[312976327,1706560282905,-45000.0,0.0005389,120]
[312976328,1706560282923,-251.0,0.0005389,2]
[312976329,1706560282945,-215.0,0.0005389,2]
[312976330,1706560282962,-153.29755698,0.00053896,60]
[312976331,1706560282978,-533.97088869,0.000539,120]
[312976332,1706560282992,-348.38711989,0.000539,120]
[312976333,1706560283008,-783.0,0.000539,120]
[312976334,1706560283024,-476.50815391,0.000539,120]
[312976335,1706560283040,-500.0,0.000539,60]
[312976336,1706560283055,-709.92947175,0.000539,110]
[312976337,1706560283070,-300.0,0.0005397,7]
[312976338,1706560283085,-200.0,0.00053972,31]
[312976339,1706560283099,-802.85,0.00053972,31]
[312976340,1706560283114,-500.0,0.00053972,7]
[312976341,1706560283128,-690.05,0.00053972,31]
[312976342,1706560283144,-612.45,0.00053972,31]
[312976343,1706560283159,-960.0,0.00053972,31]
[312976344,1706560283173,-500.0,0.00053972,31]
[312976345,1706560283187,-500.0,0.00053972,31]
[312976346,1706560283201,-660.93,0.00053972,31]
[312976347,1706560283216,-500.0,0.00053972,31]
[312976348,1706560283233,-588.26,0.00053972,31]
[312976349,1706560283248,-173.88577265,0.00053972,31]
[312976350,1706560283262,-803.89,0.00053972,2]
[312976351,1706560283276,-584.71,0.00053972,31]
[312976352,1706560283290,-518.29,0.00053972,15]
[312976353,1706560283304,-794.24,0.00053972,2]
[312976354,1706560283319,-536.17,0.00053972,31]
[312976355,1706560283333,-500.0,0.00053972,31]
[312976356,1706560283347,-608.92,0.00053972,31]
[312976357,1706560283361,-500.0,0.00053972,31]
[312976358,1706560283376,-500.0,0.00053972,31]
[312976359,1706560283391,-500.0,0.00053972,31]
[312976360,1706560283405,-500.0,0.00053972,31]
[312976361,1706560283420,-500.0,0.00053972,31]
[312976362,1706560283434,-500.0,0.00053972,31]
[312976363,1706560283448,-794.87,0.00053972,31]
[312976364,1706560283462,-500.0,0.00053972,31]
[312976365,1706560283477,-637.14,0.00053972,31]
[312976366,1706560283491,-500.0,0.00053972,31]
[312976367,1706560283505,-500.0,0.00053972,31]
[312976368,1706560283519,-500.0,0.00053972,31]
[312976369,1706560283534,-500.0,0.00053972,31]
[312976370,1706560283548,-500.0,0.00053972,31]
[312976371,1706560283562,-500.0,0.00053972,31]
[312976372,1706560283576,-500.0,0.00053972,31]
[312976373,1706560283591,-527.51,0.00053972,2]
[312976374,1706560283604,-654.97,0.00053972,31]
[312976375,1706560283619,-1071.26,0.00053972,7]
[312976376,1706560283632,-500.0,0.00053972,31]
[312976377,1706560283646,-500.0,0.00053972,31]
[312976378,1706560283661,-1434.64,0.00053972,31]
[312976379,1706560283678,-164.61015233,0.00053972,31]
[312976380,1706560283692,-359.41289897,0.00053972,7]
[312976381,1706560283709,-613.37,0.00053972,31]
[312976382,1706560283737,-500.0,0.00053972,31]
[312976383,1706560283761,-1690.03,0.00053972,31]
[312976384,1706560283782,-1985.41,0.00053972,2]
[312976385,1706560283800,-500.0,0.00053972,31]
[312976386,1706560283818,-500.0,0.00053972,31]
[312976387,1706560283836,-500.0,0.00053972,31]
[312976388,1706560283854,-500.0,0.00053972,31]
[312976389,1706560283871,-500.0,0.00053972,31]
[312976390,1706560283886,-500.0,0.00053972,31]
[312976391,1706560283901,-367.39316499,0.00053972,31]
[312976392,1706560283916,-500.0,0.00053972,31]
[312976393,1706560283932,-500.0,0.00053972,31]
[312976394,1706560283947,-500.0,0.00053972,31]
[312976395,1706560283961,-500.0,0.00053972,31]
[312976396,1706560283977,-929.78,0.00053972,31]
[312976397,1706560283992,-500.0,0.00053972,31]
[312976398,1706560284008,-500.0,0.00053972,31]
[312976399,1706560284056,-500.0,0.00053972,31]
[312976400,1706560284230,-689.25,0.00053972,31]
[312976401,1706560284250,-500.0,0.00053972,31]
[312976402,1706560284259,-500.0,0.00053972,31]
[312976403,1706560284269,-500.0,0.00053972,31]
[312976404,1706560284279,-1000.0,0.00053972,31]
[312976405,1706560284288,-525.86,0.00053972,31]
[312976406,1706560284298,-500.0,0.00053972,31]
[312976407,1706560284307,-500.0,0.00053972,31]
[312976408,1706560284317,-500.0,0.00053972,31]
[312976409,1706560284326,-508.14,0.00053972,31]
[312976410,1706560284335,-500.0,0.00053972,31]
[312976411,1706560284344,-703.04,0.00053972,31]
[312976412,1706560284353,-1153.07,0.00053972,31]
[312976413,1706560284363,-733.87,0.00053972,31]
[312976414,1706560284372,-500.0,0.00053972,31]
[312976415,1706560284381,-500.0,0.00053972,2]
[312976416,1706560284390,-500.0,0.00053972,31]
[312976417,1706560284399,-500.0,0.00053972,31]
[312976418,1706560284409,-542.06,0.00053972,31]
[312976419,1706560284418,-550.0,0.00053972,30]
[312976420,1706560284428,-500.0,0.00053972,31]
[312976421,1706560284437,-500.0,0.00053972,31]
[312976422,1706560284446,-500.0,0.00053972,31]
[312976423,1706560284455,-760.13,0.00053972,31]
[312976424,1706560284464,-526.06,0.00053972,31]
[312976425,1706560284473,-500.0,0.00053972,31]
[312976426,1706560284484,-500.0,0.00053972,31]
[312976427,1706560284495,-1016.8,0.00053972,31]
[312976428,1706560284506,-4583.74,0.00053972,31]
[312976429,1706560284516,-1755.03,0.00053972,7]
[312976430,1706560284526,-1002.26,0.00053972,31]
[312976431,1706560284536,-503.19,0.00053972,31]
[312976432,1706560284547,-10182.67,0.00053972,31]
[312976433,1706560284556,-4249.45,0.00053972,31]
[312976434,1706560284565,-500.0,0.00053972,31]
[312976435,1706560284576,-1038.15,0.00053972,31]
[312976436,1706560284585,-1871.53,0.00053972,31]
[312976437,1706560284595,-1548.31,0.00053972,31]
[312976438,1706560284604,-1007.6,0.00053972,31]
[312976439,1706560284614,-500.0,0.00053972,31]
[312976440,1706560284623,-500.0,0.00053972,31]
[312976441,1706560284633,-4198.38,0.00053972,31]
[312976442,1706560284643,-4148.68,0.00053972,5]
[312976443,1706560284653,-310.30712464,0.00053972,31]
[312976444,1706560284662,-569.88,0.00053972,31]
[312976445,1706560284672,-1746.98,0.00053972,31]
[312976446,1706560284682,-946.79,0.00053972,31]
[312976447,1706560284691,-659.85,0.00053972,31]
[312976448,1706560284701,-500.0,0.00053972,31]
[312976449,1706560284711,-1063.77,0.00053972,31]
[312976450,1706560284721,-7962.11,0.00053972,31]
[312976451,1706560284732,-3153.28,0.00053972,31]
[312976452,1706560284741,-500.0,0.00053972,31]
[312976453,1706560284750,-500.0,0.00053972,31]
[312976454,1706560284760,-4332.43,0.00053972,31]
[312976455,1706560284769,-1133.9,0.00053972,31]
[312976456,1706560284779,-1617.28,0.00053972,31]
[312976457,1706560284788,-5863.89,0.00053972,31]
[312976458,1706560284797,-500.0,0.00053972,31]
[312976459,1706560284808,-1197.97,0.00053972,31]
[312976460,1706560284818,-1997.59,0.00053972,31]
[312976461,1706560284827,-500.0,0.00053972,7]
[312976462,1706560284838,-1149.94,0.00053972,31]
[312976463,1706560284848,-681.59,0.00053972,31]
[312976464,1706560284857,-500.0,0.00053972,31]
[312976465,1706560284866,-500.0,0.00053972,31]
[312976466,1706560284876,-500.0,0.00053972,31]
[312976467,1706560284886,-1457.36,0.00053972,31]
[312976468,1706560284896,-508.06,0.00053972,31]
[312976469,1706560284906,-500.0,0.00053972,31]
[312976470,1706560284918,-1023.2,0.00053972,31]
[312976471,1706560284928,-1286.28,0.00053972,31]
[312976472,1706560284938,-511.96173108,0.00053972,7]
[312976473,1706560284948,-507.82,0.00053972,31]
[312976474,1706560284958,-642.3,0.00053972,31]
[312976475,1706560284968,-1436.82,0.00053972,31]
[312976476,1706560284980,-2904.01,0.00053972,5]
[312976477,1706560284990,-500.0,0.00053972,31]
[312976478,1706560284999,-1073.77,0.00053972,31]
[312976479,1706560285009,-500.0,0.00053972,31]
[312976480,1706560285019,-500.0,0.00053972,31]
[312976481,1706560285029,-902.23,0.00053972,31]
[312976482,1706560285039,-500.0,0.00053972,31]
[312976483,1706560285048,-1043.52,0.00053972,31]
[312976484,1706560285058,-2075.54,0.00053972,31]
[312976485,1706560285068,-1153.25,0.00053972,31]
[312976486,1706560285077,-500.0,0.00053972,31]
[312976487,1706560285088,-992.98,0.00053972,31]
[312976488,1706560285097,-1170.76,0.00053972,31]
[312976489,1706560285107,-1219.32,0.00053972,31]
[312976490,1706560285117,-2355.86,0.00053972,31]
[312976491,1706560285127,-1137.14,0.00053972,31]
[312976492,1706560285136,-1856.63,0.00053972,31]
[312976493,1706560285146,-525.44,0.00053972,31]
[312976494,1706560285156,-1046.32,0.00053972,31]
[312976495,1706560285166,-2810.09,0.00053972,31]
[312976496,1706560285175,-4393.08,0.00053972,31]
[312976497,1706560285185,-777.18,0.00053972,31]
[312976498,1706560285195,-500.0,0.00053972,31]
[312976499,1706560285204,-500.0,0.00053972,31]
[312976500,1706560285213,-543.5,0.00053972,31]
[312976501,1706560285222,-500.0,0.00053972,31]
[312976502,1706560285233,-654.21,0.00053972,31]
[312976503,1706560285243,-1384.66,0.00053972,31]
[312976504,1706560285253,-2160.75,0.00053972,31]
[312976505,1706560285263,-2285.93,0.00053972,7]
[312976506,1706560285272,-745.11,0.00053972,31]
[312976507,1706560285282,-1522.49,0.00053972,31]
[312976508,1706560285292,-1223.13,0.00053972,31]
[312976509,1706560285301,-2278.99,0.00053972,31]
[312976510,1706560285310,-2428.38,0.00053972,31]
[312976511,1706560285320,-2579.65,0.00053972,31]
[312976512,1706560285329,-500.0,0.00053972,31]
[312976513,1706560285338,-1020.99,0.00053972,31]
[312976514,1706560285347,-500.0,0.00053972,31]
[312976515,1706560285357,-636.57,0.00053972,31]
[312976516,1706560285366,-500.0,0.00053972,14]
[312976517,1706560285376,-818.65,0.00053972,31]
[312976518,1706560285385,-521.29,0.00053972,31]
[312976519,1706560285394,-1372.59,0.00053972,31]
[312976520,1706560285404,-500.0,0.00053972,31]
[312976521,1706560285414,-500.0,0.00053972,31]
[312976522,1706560285423,-500.0,0.00053972,31]
[312976523,1706560285433,-1474.92,0.00053972,31]
[312976524,1706560285443,-529.19,0.00053972,31]
[312976525,1706560285452,-500.0,0.00053972,31]
[312976526,1706560285461,-500.0,0.00053972,31]
[312976527,1706560285470,-4936.79,0.00053972,31]
[312976528,1706560285481,-820.98,0.00053972,31]
[312976529,1706560285491,-1797.82,0.00053972,31]
[312976530,1706560285500,-1033.55,0.00053972,31]
[312976531,1706560285509,-527.47,0.00053972,31]
[312976532,1706560285518,-1398.26,0.00053972,31]
[312976533,1706560285527,-1095.17,0.00053972,31]
[312976534,1706560285536,-1726.01,0.00053972,31]
[312976535,1706560285546,-1943.7,0.00053972,31]
[312976536,1706560285555,-500.0,0.00053972,31]
[312976537,1706560285565,-500.0,0.00053972,31]
[312976538,1706560285574,-500.0,0.00053972,31]
[312976539,1706560285583,-500.0,0.00053972,31]
[312976540,1706560285592,-558.58,0.00053972,31]
[312976541,1706560285602,-500.0,0.00053972,31]
[312976542,1706560285611,-1000.0,0.00053972,120]
[312976543,1706560285621,-1000.0,0.00053972,120]
[312976544,1706560285630,-1144.47,0.00053972,31]
[312976545,1706560285639,-7410.07,0.00053972,31]
[312976546,1706560285649,-1000.0,0.00053972,120]
[312976547,1706560285658,-476.69392481,0.00053972,120]
[312976548,1706560285668,-500.0,0.00053972,31]
[312976549,1706560285677,-500.0,0.00053972,31]
[312976550,1706560285686,-1617.52,0.00053972,31]
[312976551,1706560285695,-2653.45,0.00053972,31]
[312976552,1706560285704,-500.0,0.00053972,31]
[312976553,1706560285714,-500.0,0.00053972,31]
[312976554,1706560285723,-500.0,0.00053972,31]
[312976555,1706560285735,-10106.11,0.00053972,31]
[312976556,1706560285744,-500.0,0.00053972,31]
[312976557,1706560285753,-500.0,0.00053972,31]
[312976558,1706560285763,-500.0,0.00053972,31]
[312976559,1706560285772,-1502.27,0.00053972,31]
[312976560,1706560285782,-1138.89,0.00053972,31]
[312976561,1706560285791,-642.23,0.00053972,31]
[312976562,1706560285801,-2268.94,0.00053972,31]
[312976563,1706560285810,-724.26,0.00053972,31]
[312976564,1706560285819,-564.2,0.00053972,2]
[312976565,1706560285829,-500.0,0.00053972,31]
[312976566,1706560285840,-2909.62,0.00053972,31]
[312976567,1706560285850,-1338.16,0.00053972,31]
[312976568,1706560285860,-536.92,0.00053972,31]
[312976569,1706560285870,-764.64,0.00053972,2]
[312976570,1706560285879,-846.95,0.00053972,31]
[312976571,1706560285889,-830.73,0.00053972,31]
[312976572,1706560285899,-546.02,0.00053972,31]
[312976573,1706560285908,-1019.65,0.00053972,31]
[312976574,1706560285918,-1849.52,0.00053972,31]
[312976575,1706560285928,-500.0,0.00053972,31]
[312976576,1706560285937,-560.49,0.00053972,31]
[312976577,1706560285947,-500.0,0.00053972,31]
[312976578,1706560285957,-1462.48,0.00053972,31]
[312976579,1706560285967,-539158.28797812,0.0005398,30]
[312976580,1706560286278,-443589.30719838,0.0005398,30]
[312976581,1706560286287,-200.0,0.00053987,63]
[312976582,1706560286297,-200.0,0.00053987,83]
[312976583,1706560286306,-200.0,0.00053987,43]
[312976584,1706560286315,-200.0,0.00053987,53]
[312976585,1706560286324,-200.0,0.00053987,73]
[312976586,1706560286333,-221.70257837,0.0005399,14]
[312976587,1706560286343,-1939.0,0.0005399,2]
[312976588,1706560286353,-1251.0,0.0005399,2]
[312976589,1706560286363,-157.47372314,0.00053994,60]
[312976590,1706560286372,-408.95450906,0.00053996,120]
[312976591,1706560286381,-11105.10878691,0.00053999,3]
[312976592,1706560286390,-50000.0,0.00054,44]
[312976593,1706560286399,-5000.0,0.00054,2]
[312976594,1706560286409,-200.0,0.00054,120]
[312976595,1706560286582,-2041.06012213,0.00054,45]
[312976596,1706560286592,-305659.35876263,0.00054,120]
[312976597,1706560286606,-7395.53580549,0.00054,120]
[312976598,1706560286623,-400.0,0.00054,120]
[312976599,1706560286643,-500.0,0.00052328,31]
[312976600,1706560286653,-65.09145296,0.00054,120]
[312976601,1706560286795,-203.76527707,0.00021844,2]
[312976602,1706560286805,-296.23944373,0.00052054,31]
[312976603,1706560287003,-157.69391539,0.00022301,2]
[312976604,1706560287015,-121.87594929,0.00052054,31]
[312976605,1706560287024,-190.32001918,0.00052602,31]
[312976606,1706560287752,-624.1021534,0.00021844,2]
[312976607,1706560287777,-4602.56305686,0.00021844,2]
[312976608,1706560287788,-2144.10452078,0.00022302,2]
[312976609,1706560287798,-1328.18221472,0.00037614,28]
[312976610,1706560287809,-224.04,0.0003926,2]
[312976611,1706560287818,-500.0,0.00039999,31]
[312976612,1706560287828,-500.0,0.00039999,31]
[312976613,1706560287839,-500.0,0.00039999,31]
[312976614,1706560287851,-500.0,0.00039999,31]
[312976615,1706560287861,-500.0,0.00039999,31]
[312976616,1706560287871,-500.0,0.00039999,31]
[312976617,1706560287881,-500.0,0.00039999,31]
[312976618,1706560287892,-500.0,0.00039999,31]
[312976619,1706560287901,-250.10809359,0.00039999,31]
[312976620,1706560288040,-249.89190641,0.00039999,31]
[312976621,1706560288050,-500.0,0.00039999,31]
[312976622,1706560288060,-500.0,0.00039999,31]
[312976623,1706560288070,-500.0,0.00039999,31]
[312976624,1706560288080,-500.0,0.00039999,31]